fUST/lending_fUST_20241108
["ID","MTS","AMOUNT","RATE_DAILY","PERIOD"]
[341639846,1731054164879,-566.14786358,0.00021916,2]
[341639847,1731054165111,-500.0,0.00021916,2]
[341639848,1731054165132,-500.0,0.00021916,2]
[341639849,1731054165154,-500.0,0.00021916,2]
[341639850,1731054165174,-500.0,0.00021916,2]
[341639851,1731054165194,-500.0,0.00021916,2]
[341639852,1731054165213,-344.7575726,0.00021916,2]
[341639853,1731054165235,-500.0,0.00021916,2]
[341639854,1731054165254,-500.0,0.00021916,2]
[341639855,1731054165276,-500.0,0.00021916,2]
[341639856,1731054165295,-500.0,0.00021916,2]
[341639857,1731054165316,-500.0,0.00021916,2]
[341639858,1731054165337,-500.0,0.00021916,2]
[341639859,1731054165358,-500.0,0.00021916,2]
[341639860,1731054165381,-500.0,0.00021916,2]
[341639861,1731054165402,-500.0,0.00021916,2]
[341639862,1731054165424,-500.0,0.00021916,2]
[341639863,1731054165445,-500.0,0.00021916,2]
[341639864,1731054165576,-500.0,0.00021916,2]
[341639865,1731054165599,-500.0,0.00021916,2]
[341639866,1731054165619,-346.41305984,0.00021916,2]
[341639867,1731054165640,-500.0,0.00021916,2]
[341639868,1731054165662,-500.0,0.00021916,2]
[341639869,1731054165684,-500.0,0.00021916,2]
[341639870,1731054165706,-500.0,0.00021916,2]
[341639871,1731054165728,-500.0,0.00021916,2]
[341639872,1731054165749,-500.0,0.00021916,2]
[341639873,1731054165769,-187.62506239,0.00021917,2]
[341639874,1731054165789,-500.0,0.00021917,2]
[341639875,1731054165810,-500.0,0.00021917,2]
[341639876,1731054165830,-500.0,0.00021917,2]
[341639877,1731054165851,-500.0,0.00021917,2]
[341639878,1731054165870,-151.0,0.00021917,2]
[341639879,1731054165890,-151.0,0.00021917,2]
[341639880,1731054165916,-500.0,0.00021917,2]
[341639881,1731054165936,-500.0,0.00021917,2]
[341639882,1731054165956,-500.0,0.00021917,2]
[341639883,1731054165976,-458.92170717,0.00021917,2]
[341639884,1731054165996,-500.0,0.00021917,2]
[341639885,1731054166017,-538.98563426,0.00021917,2]
[341639886,1731054166037,-500.0,0.00021917,2]
[341639887,1731054166059,-500.0,0.00021917,2]
[341639888,1731054166079,-500.0,0.00021917,2]
[341639889,1731054166099,-500.0,0.00021917,2]
[341639890,1731054166118,-500.0,0.00021917,2]
[341639891,1731054166138,-500.0,0.00021917,2]
[341639892,1731054166158,-500.0,0.00021917,2]
[341639893,1731054166180,-500.0,0.00021917,2]
[341639894,1731054166200,-505.49044665,0.00021917,2]
[341639895,1731054166221,-535.36231132,0.00021917,2]
[341639896,1731054166241,-500.94116129,0.00021917,2]
[341639897,1731054166260,-638.41034758,0.00021917,2]
[341639898,1731054166280,-508.76318269,0.00021917,2]
[341639899,1731054166300,-500.0,0.00021917,2]
[341639900,1731054166320,-2336.0,0.00021917,2]
[341639901,1731054166340,-504.88495705,0.00021917,2]
[341639902,1731054166360,-500.0,0.00021917,2]
[341639903,1731054166381,-513.10229293,0.00021917,2]
[341639904,1731054166401,-500.0,0.00021917,2]
[341639905,1731054166422,-1376.28,0.00021917,2]
[341639906,1731054166442,-500.0,0.00021917,2]
[341639907,1731054166461,-500.0,0.00021917,2]
[341639908,1731054166481,-500.0,0.00021917,2]
[341639909,1731054166501,-500.0,0.00021917,2]
[341639910,1731054166521,-500.0,0.00021917,2]
[341639911,1731054166542,-500.0,0.00021917,2]
[341639912,1731054166562,-500.0,0.00021917,2]
[341639913,1731054166581,-500.0,0.00021917,2]
[341639914,1731054166601,-515.7945876,0.00021917,2]
[341639915,1731054166620,-230.63690467,0.00021917,2]
[341639916,1731054166640,-500.0,0.00021917,2]
[341639917,1731054166661,-413.79265586,0.00021917,2]
[341639918,1731054166682,-500.0,0.00021917,2]
[341639919,1731054166703,-500.0,0.00021917,2]
[341639920,1731054166723,-500.0,0.00021917,2]
[341639921,1731054166742,-500.0,0.00021917,2]
[341639922,1731054166762,-564.04,0.00021917,2]
[341639923,1731054166782,-500.0,0.00021917,2]
[341639924,1731054166802,-500.0,0.00021917,2]
[341639925,1731054166821,-500.0,0.00021917,2]
[341639926,1731054166841,-500.0,0.00021917,2]
[341639927,1731054166861,-500.0,0.00021917,2]
[341639928,1731054166882,-684.23,0.00021917,2]
[341639929,1731054166909,-503.25938439,0.00021917,2]
[341639930,1731054166932,-1284.76,0.00021917,2]
[341639931,1731054166952,-500.0,0.00021917,2]
[341639932,1731054166973,-500.0,0.00021917,2]
[341639933,1731054166993,-500.0,0.00021917,2]
[341639934,1731054167012,-500.0,0.00021917,2]
[341639935,1731054167032,-502.46887436,0.00021917,2]
[341639936,1731054167051,-500.0,0.00021917,2]
[341639937,1731054167071,-500.0,0.00021917,2]
[341639938,1731054167091,-500.0,0.00021917,2]
[341639939,1731054167110,-507.49349454,0.00021917,2]
[341639940,1731054167130,-500.0,0.00021917,2]
[341639941,1731054167150,-500.0,0.00021917,2]
[341639942,1731054167173,-500.0,0.00021917,2]
[341639943,1731054167193,-500.0,0.00021917,2]
[341639944,1731054167212,-500.0,0.00021917,2]
[341639945,1731054167232,-500.0,0.00021917,2]
[341639946,1731054167252,-449.5956365,0.00021917,2]
[341639947,1731054167271,-584.49370361,0.00021917,2]
[341639948,1731054167291,-500.0,0.00021917,2]
[341639949,1731054167311,-500.0,0.00021917,2]
[341639950,1731054167330,-500.0,0.00021917,2]
[341639951,1731054167350,-500.0,0.00021917,2]
[341639952,1731054167370,-518.14760634,0.00021917,2]
[341639953,1731054167390,-500.0,0.00021917,2]
[341639954,1731054167410,-546.03059442,0.00021917,2]
[341639955,1731054167433,-500.0,0.00021917,2]
[341639956,1731054167452,-500.0,0.00021917,2]
[341639957,1731054167473,-500.0,0.00021917,2]
[341639958,1731054167494,-500.0,0.00021917,2]
[341639959,1731054167517,-500.0,0.00021917,2]
[341639960,1731054167539,-500.0,0.00021917,2]
[341639961,1731054167559,-500.0,0.00021917,2]
[341639962,1731054167580,-500.0,0.00021917,2]
[341639963,1731054167601,-500.0,0.00021917,2]
[341639964,1731054167621,-500.0,0.00021917,2]
[341639965,1731054167642,-500.0,0.00021917,2]
[341639966,1731054167663,-540.07445125,0.00021917,2]
[341639967,1731054167686,-500.0,0.00021917,2]
[341639968,1731054167706,-500.0,0.00021917,2]
[341639969,1731054167728,-624.4,0.00021917,2]
[341639970,1731054167747,-536.95081433,0.00021917,2]
[341639971,1731054167767,-500.0,0.00021917,2]
[341639972,1731054167787,-501.43,0.00021917,2]
[341639973,1731054167807,-512.64346023,0.00021917,2]
[341639974,1731054167829,-500.0,0.00021917,2]
[341639975,1731054167849,-500.0,0.00021917,2]
[341639976,1731054167870,-500.0,0.00021917,2]
[341639977,1731054167892,-500.0,0.00021917,2]
[341639978,1731054167916,-590.99797664,0.00021917,2]
[341639979,1731054167938,-500.0,0.00021917,2]
[341639980,1731054167958,-500.0,0.00021917,2]
[341639981,1731054167980,-500.0,0.00021917,2]
[341639982,1731054168000,-500.0,0.00021917,2]
[341639983,1731054168021,-260.94158996,0.00021917,2]
[341639984,1731054168042,-500.0,0.00021917,2]
[341639985,1731054168063,-500.0,0.00021917,2]
[341639986,1731054168180,-500.0,0.00021917,2]
[341639987,1731054168202,-500.0,0.00021917,2]
[341639988,1731054168222,-500.0,0.00021917,2]
[341639989,1731054168243,-500.0,0.00021917,2]
[341639990,1731054168264,-500.0,0.00021917,2]
[341639991,1731054168284,-503.07144391,0.00021917,2]
[341639992,1731054168304,-500.0,0.00021917,2]
[341639993,1731054168326,-590.71562022,0.00021917,2]
[341639994,1731054168346,-459.74636911,0.00021917,2]
[341639995,1731054168367,-582.95772983,0.00021917,2]
[341639996,1731054168387,-500.0,0.00021917,2]
[341639997,1731054168408,-500.0,0.00021917,2]
[341639998,1731054168429,-500.0,0.00021917,2]
[341639999,1731054168449,-500.0,0.00021917,2]
[341640000,1731054168470,-500.0,0.00021917,2]
[341640001,1731054168494,-500.0,0.00021917,2]
[341640002,1731054168514,-505.74960067,0.00021917,2]
[341640003,1731054168534,-500.0,0.00021917,2]
[341640004,1731054168554,-500.0,0.00021917,2]
[341640005,1731054168575,-500.0,0.00021917,2]
[341640006,1731054168595,-500.0,0.00021917,2]
[341640007,1731054168616,-500.0,0.00021917,2]
[341640008,1731054168636,-162.10200774,0.00021917,2]
[341640009,1731054168656,-500.0,0.00021917,2]
[341640010,1731054168678,-243.96237275,0.00021917,2]
[341640011,1731054168700,-508.14828084,0.00021917,2]
[341640012,1731054168722,-500.0,0.00021917,2]
[341640013,1731054168743,-500.0,0.00021917,2]
[341640014,1731054168764,-500.0,0.00021917,2]
[341640015,1731054168785,-500.0,0.00021917,2]
[341640016,1731054168807,-500.0,0.00021917,2]
[341640017,1731054168828,-506.28810026,0.00021917,2]
[341640018,1731054168849,-500.0,0.00021917,2]
[341640019,1731054168870,-500.0,0.00021917,2]
[341640020,1731054168891,-500.0,0.00021917,2]
[341640021,1731054168916,-562.12355078,0.00021917,2]
[341640022,1731054168939,-500.0,0.00021917,2]
[341640023,1731054168960,-511.76103884,0.00021917,2]
[341640024,1731054168981,-500.0,0.00021917,2]
[341640025,1731054169002,-500.0,0.00021917,2]
[341640026,1731054169022,-500.0,0.00021917,2]
[341640027,1731054169043,-500.0,0.00021917,2]
[341640028,1731054169064,-500.0,0.00021917,2]
[341640029,1731054169086,-342.30863459,0.00021917,2]
[341640030,1731054169106,-200.0,0.00021917,2]
[341640031,1731054169127,-500.0,0.00021917,2]
[341640032,1731054169147,-500.0,0.00021917,2]
[341640033,1731054169167,-500.0,0.00021917,2]
[341640034,1731054169187,-522.07734048,0.00021917,2]
[341640035,1731054169207,-500.0,0.00021917,2]
[341640036,1731054169228,-500.0,0.00021917,2]
[341640037,1731054169249,-500.0,0.00021917,2]
[341640038,1731054169270,-317.1296968,0.00021917,2]
[341640039,1731054169290,-232.00888369,0.00021917,2]
[341640040,1731054169310,-500.0,0.00021917,2]
[341640041,1731054169331,-504.23356779,0.00021917,2]
[341640042,1731054169352,-500.0,0.00021917,2]
[341640043,1731054169373,-500.0,0.00021917,2]
[341640044,1731054169393,-500.0,0.00021917,2]
[341640045,1731054169414,-500.0,0.00021917,2]
[341640046,1731054169435,-500.0,0.00021917,2]
[341640047,1731054169456,-500.0,0.00021917,2]
[341640048,1731054169476,-500.0,0.00021917,2]
[341640049,1731054169497,-604.25501442,0.00021917,2]
[341640050,1731054169517,-500.0,0.00021917,2]
[341640051,1731054169537,-500.0,0.00021917,2]
[341640052,1731054169558,-500.0,0.00021917,2]
[341640053,1731054169579,-500.0,0.00021917,2]
[341640054,1731054169600,-500.0,0.00021917,2]
[341640055,1731054169620,-500.14,0.00021917,2]
[341640056,1731054169641,-500.0,0.00021917,2]
[341640057,1731054169662,-500.0,0.00021917,2]
[341640058,1731054169684,-851.83,0.00021917,2]
[341640059,1731054169705,-500.0,0.00021917,2]
[341640060,1731054169726,-500.0,0.00021917,2]
[341640061,1731054169746,-433.44707519,0.00021917,2]
[341640062,1731054169765,-500.0,0.00021917,2]
[341640063,1731054169786,-500.0,0.00021917,2]
[341640064,1731054169806,-500.0,0.00021917,2]
[341640065,1731054169826,-908.71,0.00021917,2]
[341640066,1731054169846,-500.0,0.00021917,2]
[341640067,1731054169867,-500.0,0.00021917,2]
[341640068,1731054169888,-500.0,0.00021917,2]
[341640069,1731054169913,-500.0,0.00021917,2]
[341640070,1731054169938,-500.0,0.00021917,2]
[341640071,1731054169957,-500.0,0.00021917,2]
[341640072,1731054169980,-500.0,0.00021917,2]
[341640073,1731054170000,-500.0,0.00021917,2]
[341640074,1731054170020,-500.0,0.00021917,2]
[341640075,1731054170040,-500.0,0.00021917,2]
[341640076,1731054170061,-500.0,0.00021917,2]
[341640077,1731054170081,-500.0,0.00021917,2]
[341640078,1731054170102,-517.66008293,0.00021917,2]
[341640079,1731054170123,-645.36,0.00021917,2]
[341640080,1731054170143,-500.0,0.00021917,2]
[341640081,1731054170163,-500.0,0.00021917,2]
[341640082,1731054170185,-595.22,0.00021917,2]
[341640083,1731054170206,-500.0,0.00021917,2]
[341640084,1731054170226,-438.98538127,0.00021917,2]
[341640085,1731054170247,-500.0,0.00021917,2]
[341640086,1731054170271,-581.58937472,0.00021917,2]
[341640087,1731054170292,-500.0,0.00021917,2]
[341640088,1731054170314,-500.0,0.00021917,2]
[341640089,1731054170335,-500.0,0.00021917,2]
[341640090,1731054170356,-500.0,0.00021917,2]
[341640091,1731054170378,-500.0,0.00021917,2]
[341640092,1731054170399,-500.0,0.00021917,2]
[341640093,1731054170421,-3836.79,0.00021917,2]
[341640094,1731054170442,-500.0,0.00021917,2]
[341640095,1731054170463,-500.0,0.00021917,2]
[341640096,1731054170484,-500.0,0.00021917,2]
[341640097,1731054170505,-500.0,0.00021917,2]
[341640098,1731054170527,-500.0,0.00021917,2]
[341640099,1731054170548,-500.0,0.00021917,2]
[341640100,1731054170570,-537.28,0.00021917,2]
[341640101,1731054170591,-500.0,0.00021917,2]
[341640102,1731054170612,-500.0,0.00021917,2]
[341640103,1731054170731,-730.93,0.00021917,2]
[341640104,1731054170753,-500.0,0.00021917,2]
[341640105,1731054170775,-306.27964553,0.00021917,2]
[341640106,1731054170796,-500.0,0.00021917,2]
[341640107,1731054170818,-500.0,0.00021917,2]
[341640108,1731054170841,-500.0,0.00021917,2]
[341640109,1731054170862,-500.0,0.00021917,2]
[341640110,1731054170884,-516.8920544,0.00021917,2]
[341640111,1731054170905,-500.0,0.00021917,2]
[341640112,1731054170929,-500.0,0.00021917,2]
[341640113,1731054170951,-626.42173807,0.00021917,2]
[341640114,1731054170973,-500.0,0.00021917,2]
[341640115,1731054170994,-500.0,0.00021917,2]
[341640116,1731054171016,-500.0,0.00021917,2]
[341640117,1731054171037,-500.0,0.00021917,2]
[341640118,1731054171058,-500.0,0.00021917,2]
[341640119,1731054171079,-500.0,0.00021917,2]
[341640120,1731054171098,-713.44,0.00021917,2]
[341640121,1731054171119,-500.0,0.00021917,2]
[341640122,1731054171141,-500.0,0.00021917,2]
[341640123,1731054171163,-500.0,0.00021917,2]
[341640124,1731054171192,-500.0,0.00021917,2]
[341640125,1731054171213,-500.0,0.00021917,2]
[341640126,1731054171234,-500.0,0.00021917,2]
[341640127,1731054171256,-4299.64,0.00021917,2]
[341640128,1731054171277,-500.0,0.00021917,2]
[341640129,1731054171297,-500.0,0.00021917,2]
[341640130,1731054171321,-500.0,0.00021917,2]
[341640131,1731054171342,-500.0,0.00021917,2]
[341640132,1731054171363,-609.83348224,0.00021917,2]
[341640133,1731054171388,-1163.65,0.00021917,2]
[341640134,1731054171410,-500.0,0.00021917,2]
[341640135,1731054171439,-500.0,0.00021917,2]
[341640136,1731054171460,-500.0,0.00021917,2]
[341640137,1731054171482,-2798.16,0.00021917,2]
[341640138,1731054171503,-500.0,0.00021917,2]
[341640139,1731054171523,-500.0,0.00021917,2]
[341640140,1731054171544,-500.0,0.00021917,2]
[341640141,1731054171565,-500.0,0.00021917,2]
[341640142,1731054171587,-500.0,0.00021917,2]
[341640143,1731054171608,-500.0,0.00021917,2]
[341640144,1731054171630,-500.0,0.00021917,2]
[341640145,1731054171652,-211.90631764,0.00021917,2]
[341640146,1731054171675,-1642.2671638,0.00021917,2]
[341640147,1731054181658,162.111444,0.00013973,2]
[341640148,1731054183415,197.138,0.0002065,2]
[341640156,1731054514956,176.20742394,0.00012,7]
[341640202,1731054567349,191.5289441,0.00032228,120]
[341640259,1731054632385,-162.111444,0.00021661,2]
[341640261,1731054632394,-569.64844156,0.00021817,2]
[341640263,1731054632403,-1033.19833295,0.00021817,2]
[341640265,1731054632412,-300.0,0.00021915,2]
[341640267,1731054632421,-300.0,0.00021915,2]
[341640269,1731054632430,-500.0,0.00021916,2]
[341640271,1731054632440,-414.68973131,0.00021916,2]
[341640273,1731054632448,-500.0,0.00021916,2]
[341640275,1731054632457,-382.7508414,0.00021916,2]
[341640277,1731054632466,-649.59130598,0.00021916,2]
[341640279,1731054632475,-500.0,0.00021916,2]
[341640281,1731054632484,-187.6250624,0.00021917,2]
[341640283,1731054632493,-500.0,0.00021917,2]
[341640285,1731054632502,-500.0,0.00021917,2]
[341640287,1731054632511,-500.0,0.00021917,2]
[341640289,1731054632520,-500.0,0.00021917,2]
[341640291,1731054632529,-500.0,0.00021917,2]
[341640293,1731054632537,-437.77762415,0.00021917,2]
[341640296,1731054632558,-62.22237585,0.00021917,2]
[341640298,1731054632567,-500.0,0.00021917,2]
[341640300,1731054632576,-500.0,0.00021917,2]
[341640302,1731054632586,-169.66000091,0.00021917,2]
[341640304,1731054632595,-500.0,0.00021917,2]
[341640306,1731054632604,-500.0,0.00021917,2]
[341640308,1731054632613,-500.0,0.00021917,2]
[341640309,1731054632622,-500.0,0.00021917,2]
[341640311,1731054632631,-500.0,0.00021917,2]
[341640313,1731054632640,-250.0,0.00021917,2]
[341640315,1731054632650,-500.0,0.00021917,2]
[341640316,1731054632659,-500.0,0.00021917,2]
[341640317,1731054632668,-1591.58,0.00021917,2]
[341640318,1731054632678,-500.0,0.00021917,2]
[341640319,1731054632688,-500.0,0.00021917,2]
[341640320,1731054632698,-353.85689997,0.00021917,2]
[341640321,1731054632707,-500.0,0.00021917,2]
[341640322,1731054632716,-559.04,0.00021917,2]
[341640323,1731054632725,-500.0,0.00021917,2]
[341640324,1731054632734,-500.0,0.00021917,2]
[341640325,1731054632850,-632.48068404,0.00021917,2]
[341640326,1731054632861,-500.0,0.00021917,2]
[341640327,1731054632870,-500.0,0.00021917,2]
[341640328,1731054632879,-500.0,0.00021917,2]
[341640329,1731054632890,-1194.5776343,0.00021917,2]
[341640330,1731054632899,-500.0,0.00021917,2]
[341640331,1731054632908,-649.9,0.00021917,2]
[341640332,1731054632917,-500.0,0.00021917,2]
[341640333,1731054632926,-500.0,0.00021917,2]
[341640334,1731054632935,-500.0,0.00021917,2]
[341640335,1731054632945,-789.48,0.00021917,2]
[341640336,1731054632954,-500.0,0.00021917,2]
[341640337,1731054632963,-195.69420986,0.00021917,2]
[341640338,1731054632973,-1466.2,0.00021917,2]
[341640339,1731054632982,-515.84649766,0.00021917,2]
[341640340,1731054632992,-500.0,0.00021917,2]
[341640341,1731054633001,-578.02083808,0.00021917,2]
[341640342,1731054633011,-500.0,0.00021917,2]
[341640343,1731054633020,-500.0,0.00021917,2]
[341640344,1731054633029,-500.0,0.00021917,2]
[341640345,1731054633039,-500.0,0.00021917,2]
[341640346,1731054633049,-500.0,0.00021917,2]
[341640347,1731054633059,-500.0,0.00021917,2]
[341640348,1731054633068,-500.0,0.00021917,2]
[341640349,1731054633076,-500.0,0.00021917,2]
[341640350,1731054633085,-500.0,0.00021917,2]
[341640351,1731054633096,-500.0,0.00021917,2]
[341640352,1731054633107,-500.0,0.00021917,2]
[341640353,1731054633116,-500.0,0.00021917,2]
[341640354,1731054633127,-475.36214997,0.00021917,2]
[341640355,1731054633136,-500.0,0.00021917,2]
[341640356,1731054633146,-500.0,0.00021917,2]
[341640357,1731054633156,-500.0,0.00021917,2]
[341640358,1731054633165,-500.0,0.00021917,2]
[341640359,1731054633178,-500.0,0.00021917,2]
[341640360,1731054633187,-500.0,0.00021917,2]
[341640361,1731054633214,-750.04,0.00021917,2]
[341640362,1731054633223,-500.0,0.00021917,2]
[341640363,1731054633233,-500.0,0.00021917,2]
[341640364,1731054633242,-500.0,0.00021917,2]
[341640365,1731054633251,-500.0,0.00021917,2]
[341640366,1731054633260,-500.0,0.00021917,2]
[341640367,1731054633269,-500.0,0.00021917,2]
[341640368,1731054633279,-528.70163114,0.00021917,2]
[341640369,1731054633288,-552.99,0.00021917,2]
[341640370,1731054633300,-305.68294905,0.00021917,2]
[341640371,1731054633312,-500.0,0.00021917,2]
[341640372,1731054633321,-634.38550994,0.00021917,2]
[341640373,1731054633331,-500.0,0.00021917,2]
[341640374,1731054633340,-500.0,0.00021917,2]
[341640375,1731054633350,-5328.58,0.00021917,2]
[341640376,1731054633359,-500.0,0.00021917,2]
[341640377,1731054633368,-500.0,0.00021917,2]
[341640378,1731054633377,-500.0,0.00021917,2]
[341640379,1731054633386,-500.0,0.00021917,2]
[341640380,1731054633395,-500.0,0.00021917,2]
[341640381,1731054633404,-306.79738773,0.00021917,2]
[341640382,1731054633414,-330.52822027,0.00021917,2]
[341640391,1731054638538,-169.47177973,0.00021917,2]
[341640393,1731054638550,-181.77097091,0.00021917,2]
[341640477,1731054641563,-1.52664379,0.00021917,2]
[341640478,1731054641575,-316.7023853,0.00021917,2]
[341640479,1731054641584,-500.0,0.00021917,2]
[341640480,1731054641593,-592.29027667,0.00021917,2]
[341640481,1731054641603,-500.0,0.00021917,2]
[341640482,1731054641613,-526.54289564,0.00021917,2]
[341640483,1731054641622,-619.24340427,0.00021917,2]
[341640484,1731054641631,-500.0,0.00021917,2]
[341640485,1731054641647,-500.0,0.00021917,2]
[341640486,1731054641656,-500.0,0.00021917,2]
[341640487,1731054641666,-9618.57,0.00021917,2]
[341640488,1731054641675,-500.0,0.00021917,2]
[341640489,1731054641684,-961.72,0.00021917,2]
[341640490,1731054641693,-500.0,0.00021917,2]
[341640491,1731054641702,-509.53399555,0.00021917,2]
[341640492,1731054641711,-500.0,0.00021917,2]
[341640493,1731054641721,-232.31906624,0.00021917,2]
[341640494,1731054641730,-261.51287549,0.00021917,2]
[341640495,1731054641740,-500.0,0.00021917,2]
[341640496,1731054641749,-942.93,0.00021917,2]
[341640497,1731054641759,-500.0,0.00021917,2]
[341640498,1731054641768,-500.0,0.00021917,2]
[341640499,1731054641777,-500.0,0.00021917,2]
[341640500,1731054641786,-500.0,0.00021917,2]
[341640501,1731054641795,-550.57,0.00021917,2]
[341640502,1731054641806,-628.56391685,0.00021917,2]
[341640503,1731054641815,-500.0,0.00021917,2]
[341640504,1731054641824,-500.0,0.00021917,2]
[341640505,1731054641835,-500.0,0.00021917,2]
[341640506,1731054641846,-500.0,0.00021917,2]
[341640507,1731054641855,-683.0,0.00021917,2]
[341640508,1731054641864,-500.0,0.00021917,2]
[341640509,1731054641874,-193.07253746,0.00021917,2]
[341640510,1731054641883,-640.39138322,0.00021917,2]
[341640511,1731054641893,-500.0,0.00021917,2]
[341640512,1731054641902,-500.0,0.00021917,2]
[341640513,1731054641911,-500.0,0.00021917,2]
[341640514,1731054641919,-500.0,0.00021917,2]
[341640515,1731054641928,-597.24545072,0.00021917,2]
[341640516,1731054641938,-581.74421242,0.00021917,2]
[341640517,1731054641947,-386.26773954,0.00021917,2]
[341640518,1731054641956,-209.84903061,0.00021917,2]
[341640519,1731054642046,-500.0,0.00021917,2]
[341640520,1731054642056,-500.0,0.00021917,2]
[341640521,1731054642065,-500.0,0.00021917,2]
[341640522,1731054642074,-505.29120413,0.00021917,2]
[341640523,1731054642083,-500.0,0.00021917,2]
[341640524,1731054642092,-588.39811047,0.00021917,2]
[341640525,1731054642104,-500.0,0.00021917,2]
[341640526,1731054642113,-500.0,0.00021917,2]
[341640527,1731054642122,-500.0,0.00021917,2]
[341640528,1731054642132,-478.04665401,0.00021917,2]
[341640529,1731054642142,-500.0,0.00021917,2]
[341640530,1731054642151,-684.63,0.00021917,2]
[341640531,1731054642160,-500.0,0.00021917,2]
[341640532,1731054642169,-500.0,0.00021917,2]
[341640533,1731054642181,-500.0,0.00021917,2]
[341640534,1731054642190,-500.0,0.00021917,2]
[341640535,1731054642199,-500.0,0.00021917,2]
[341640536,1731054642208,-527.69475288,0.00021917,2]
[341640537,1731054642218,-500.0,0.00021917,2]
[341640538,1731054642227,-502.22676742,0.00021917,2]
[341640539,1731054642236,-500.0,0.00021917,2]
[341640540,1731054642245,-500.0,0.00021917,2]
[341640541,1731054642254,-592.72778681,0.00021917,2]
[341640542,1731054642264,-500.0,0.00021917,2]
[341640543,1731054642273,-4003.83,0.00021917,2]
[341640544,1731054642282,-500.0,0.00021917,2]
[341640545,1731054642291,-621.17,0.00021917,2]
[341640546,1731054642302,-500.0,0.00021917,2]
[341640547,1731054642312,-500.0,0.00021917,2]
[341640548,1731054642321,-500.0,0.00021917,2]
[341640549,1731054642330,-543.43494088,0.00021917,2]
[341640550,1731054642339,-500.0,0.00021917,2]
[341640551,1731054642348,-500.0,0.00021917,2]
[341640552,1731054642358,-500.0,0.00021917,2]
[341640553,1731054642367,-500.0,0.00021917,2]
[341640554,1731054642376,-500.0,0.00021917,2]
[341640555,1731054642386,-500.0,0.00021917,2]
[341640556,1731054642395,-500.0,0.00021917,2]
[341640557,1731054642404,-500.0,0.00021917,2]
[341640558,1731054642414,-500.0,0.00021917,2]
[341640559,1731054642423,-500.0,0.00021917,2]
[341640560,1731054642432,-500.0,0.00021917,2]
[341640561,1731054642441,-802.77,0.00021917,2]
[341640562,1731054642451,-500.0,0.00021917,2]
[341640563,1731054642460,-472.61171794,0.00021917,2]
[341640564,1731054642469,-500.0,0.00021917,2]
[341640565,1731054642479,-500.0,0.00021917,2]
[341640566,1731054642488,-509.84,0.00021917,2]
[341640567,1731054642497,-500.0,0.00021917,2]
[341640568,1731054642506,-500.0,0.00021917,2]
[341640569,1731054642515,-500.0,0.00021917,2]
[341640570,1731054642524,-3357.25,0.00021917,2]
[341640571,1731054642534,-500.0,0.00021917,2]
[341640572,1731054642542,-4909.91,0.00021917,2]
[341640573,1731054642554,-500.0,0.00021917,2]